[Event "Portuguese Rapid-ch 2022"]
[Site "Viseu"]
[Date "2022.06.11"]
[Round "7.5"]
[White "Silva, Goncalo Nuno Neto Pi"]
[Black "Silva, Miguel Antonio Neto"]
[Result "0-1"]
[ECO "C50"]
[WhiteElo "2169"]
[BlackElo "2215"]
[Annotator "TA"]
[PlyCount "62"]
[EventDate "2022.06.09"]
[EventType "rapid"]
[EventCountry "POR"]
[SourceTitle "playchess.com"]
[Source "ChessBase"]
[SourceQuality "1"]
[TimeControl "600+5"]

{[%evp 9,62,18,31,15,10,6,23,11,10,2,3,0,0,-5,22,16,21,20,31,-9,15,0,14,3,0,0,4,-24,0,-72,0,-190,0,-33,-24,-29,0,-147,-146,-133,-87,-92,-84,-83,-83,-137,-157,-161,-116,-116,-116,-116,-116,-113,-91]} 1. e4 e5 2. Nf3 Nc6 3. Bc4 Bc5 4. O-O Nf6 5. d3 a6 6. h3 {C50: Hungarian Defence and Giuoco Pianissimo.} Ba7 7. Nc3 h6 8. a4 {White has an edge.} d6 9. Nd5 Be6 10. Nxf6+ Qxf6 11. Bxe6 fxe6 12. c3 {[#]} O-O $146 ({Predecessor:} 12... g5 13. b4 Ne7 14. Be3 Ng6 15. g3 Rg8 16. Nh2 Qg7 17. Qh5 Kd7 18. Ng4 Rh8 {0-1 (57) Murzina,A (1768)-Rodriguez Redondo,A (1911) Porto Carras 2018}) 13. b4 Ne7 14. d4 Ng6 15. Be3 Rf7 16. Qe2 exd4 17. cxd4 Raf8 18. Rad1 Qe7 19. Rfe1 (19. Ne1 $11 {keeps the balance.}) 19... d5 (19... Qe8 $1 $17) 20. e5 $2 {[#]} (20. exd5 $11 {and White stays safe.} exd5 21. Bd2) 20... Qe8 $2 (20... Qxb4 21. Qc2 (21. Rb1 Qxa4 22. Rxb7 Bb6 $17) 21... Ne7 22. Rb1 $11) (20... Rxf3 $1 $19 {[%mdl 512]} 21. gxf3 Qxb4) 21. b5 axb5 22. axb5 Bb6 23. Bd2 {[#]} (23. Nd2 $11 {remains equal.}) 23... Rxf3 $1 $17 {[%mdl 512]} 24. gxf3 Nh4 (24... Bxd4 $142 25. Kh1 Nf4 26. Bxf4 Rxf4) 25. f4 Qg6+ ({Much worse is} 25... Bxd4 $6 26. Qg4 Qg6 27. Kh1 Bxf2 28. Re2 Qxg4 29. hxg4 $11) 26. Qg4 Nf3+ 27. Kh1 (27. Kg2 $142 Nxe1+ 28. Rxe1 Qxg4+ 29. hxg4) 27... Qxg4 {Black is more active.} 28. hxg4 {[%cal Of4f5]} Nxd2 ({But not} 28... Bxd4 29. Re2 $14) 29. Rxd2 {[%cal Of4f5] Black is better.} Ba5 ({Stronger than} 29... Rxf4 30. Red1 $15) 30. Red1 Bxd2 31. Rxd2 Rxf4 {Weighted Error Value: White=0.45/Black=0.24 (precise)} 0-1

[Event "Portuguese Rapid-ch 2022"]
[Site "Viseu"]
[Date "2022.06.11"]
[Round "7.6"]
[White "Santos, Antonio P"]
[Black "Sismeiro, Miguel"]
[Result "1-0"]
[ECO "D85"]
[WhiteElo "2182"]
[BlackElo "2148"]
[Annotator "TA"]
[PlyCount "57"]
[EventDate "2022.06.09"]
[EventType "rapid"]
[EventCountry "POR"]
[SourceTitle "playchess.com"]
[Source "ChessBase"]
[SourceQuality "1"]
[TimeControl "600+5"]

{[%evp 23,57,0,17,0,0,26,17,-47,-32,-85,-76,-93,-75,-79,-56,-47,176,176,673,665,634,627,1187,1167,6433,6433,29992,5057,1648,1463,1468,874,29982,29982,29983,29983]} 1. d4 {[%emt 0:00:03]} Nf6 {[%emt 0:00:23]} 2. c4 {[%emt 0:00:01]} g6 {[%emt 0:00:01]} 3. Nc3 {[%emt 0:00:02]} d5 {[%emt 0:00:01]} 4. cxd5 {[%emt 0:00:03]} Nxd5 {[%emt 0:00:01]} 5. e4 {[%emt 0:00:02]} Nxc3 {[%emt 0:00:01]} 6. bxc3 {[%emt 0:00:01]} Bg7 {[%emt 0:00:02]} 7. Nf3 {[%emt 0:00:03]} c5 {[%emt 0:00:01]} 8. Rb1 {[%emt 0:00:03]} cxd4 {[%emt 0:00:07]} 9. cxd4 {[%emt 0:00:02]} O-O {[%emt 0:00:19]} 10. Be2 {[%emt 0:00:05]} Qa5+ {[%emt 0:00:01]} 11. Bd2 {[%emt 0:00:11]} Qxa2 {[%emt 0:00:02]} 12. O-O {[%emt 0:00:03]} Bg4 {[%emt 0:00:03]} 13. Rxb7 {[%emt 0:00:48] D85: Exchange Grünfeld: Unusual White 7th moves and lines with 7 Nf3.} Bxf3 {[%emt 0:00:06]} 14. Bxf3 {[%emt 0:00:01] Strongly threatening e5.} Bxd4 {[%emt 0:00:05]} 15. Bh6 {[%emt 0:00:04]} (15. Bb4 $11 Rd8 16. Qc1 (16. Bxe7 $2 Bxf2+ 17. Rxf2 Rxd1+ 18. Bxd1 Qa1 $19) (16. Rxe7 $2 Nc6 $19)) 15... Rd8 $15 {[%emt 0:00:33][%cal Od4f2] And now ...Bxf2+! would win.} 16. Qc1 {[%emt 0:05:02]} (16. Rc7 $15 Na6 17. Rc2) 16... Nd7 {[%emt 0:02:39] [#]} 17. h4 $146 {[%emt 0:00:42]} ({Predecessor:} 17. Bd1 Qa6 18. Qb1 Bb6 19. Qb2 e5 20. Rxd7 Rxd7 21. Qxe5 Bd4 22. Qf4 Qb6 23. h4 {0-1 (37) Staudte,R (1990)-Bok,B (2180) Maastricht 2008}) 17... Ne5 {[%emt 0:00:44]} 18. Rxe7 {[%emt 0:00:21]} Nd3 {[%emt 0:01:46]} 19. Qg5 {[%emt 0:01:51] Hoping for e5.} Nxf2 $2 {[%emt 0:00:06] This costs Black the game.} (19... Qa6 $1 $15 {keeps the upper hand.} 20. Qd2 Ne5) 20. Kh2 $18 {[%emt 0:00:03] e5 is the strong threat.} Nd3 {[%emt 0:03:25]} (20... Re8) 21. e5 {[%emt 0:00:27] Intending Qf6 and mate.} Qa5 {[%emt 0:00:31]} 22. Bxa8 {[%emt 0:00:27][%cal Oe7f7]} Rxa8 {[%emt 0:00:03]} 23. Rexf7 {[%emt 0:00:50] Threatening mate with Rf8+.} Bxe5+ {[%emt 0:00:20]} 24. Kh1 {[%emt 0:00:07] White wants to mate with Rf8+.} Qc5 {[%emt 0:00:08]} 25. Rf8+ {[%emt 0:00:15]} (25. Qe3 $142 Qb4 {[#]} 26. Qe4 $3 {[%mdl 512]} Bf4 27. Rg7+ Kh8 28. Qxa8+ Bb8 29. Rg8+ $3 {[%mdl 512]} Kxg8 30. Qd5+ Kh8 31. Qd8+ Qf8 32. Rxf8#) 25... Rxf8 {[%emt 0:00:01]} 26. Rxf8+ {[%emt 0:00:01]} Qxf8 {[%emt 0:00:02]} 27. Bxf8 {[%emt 0:00:01]} Nf2+ {[%emt 0:00:38]} 28. Kg1 {[%emt 0:00:05]} Bd4 {[%emt 0:00:03]} 29. Qd5+ {[%emt 0:00:03] Weighted Error Value: White=0.23 (precise) /Black=1.38} 1-0

[Event "Portuguese Rapid-ch 2022"]
[Site "Viseu"]
[Date "2022.06.11"]
[Round "7.7"]
[White "Guia, Artur Solovyov Eloy"]
[Black "Padeiro, Jose"]
[Result "1/2-1/2"]
[ECO "A45"]
[WhiteElo "1916"]
[BlackElo "2207"]
[Annotator "TA"]
[PlyCount "90"]
[EventDate "2022.06.09"]
[EventType "rapid"]
[EventCountry "POR"]
[SourceTitle "playchess.com"]
[Source "ChessBase"]
[SourceQuality "1"]
[TimeControl "600+5"]

{[%evp 18,90,21,17,19,17,21,23,18,14,13,20,41,36,39,45,39,39,52,39,53,44,39,22,15,29,132,70,72,46,70,43,89,0,49,34,47,0,0,0,0,0,0,0,3,0,4,0,0,0,0,0,0,0,0,0,0,0,5,5,89,84,87,32,156,155,155,59,59,59,75,74,95,72,95]} 1. d4 {[%emt 0:00:02]} Nf6 {[%emt 0:00:11]} 2. Bg5 {[%emt 0:00:01]} e6 {[%emt 0:00:06]} 3. Nd2 {[%emt 0:00:03]} d5 {[%emt 0:00:05]} 4. e4 {[%emt 0:00:03]} dxe4 {[%emt 0:00:06]} 5. Nxe4 {[%emt 0:00:02]} Be7 {[%emt 0:00:02]} 6. Bxf6 {[%emt 0:00:13]} gxf6 {[%emt 0:00:05]} 7. Nf3 {[%emt 0:00:32]} b6 {[%emt 0:00:12]} 8. c3 {[%emt 0:00:12]} Bb7 {[%emt 0:00:08]} 9. Bb5+ {[%emt 0:00:48]} c6 {[%emt 0:00:03]} 10. Bd3 {[%emt 0:00:02]} Nd7 {[%emt 0:00:06] C13: French: Classical System: 4 Bg5 Be7, Alekhine-Chatard Attack.} 11. Qe2 {[%emt 0:00:16]} Qc7 {[%emt 0:00:06]} 12. O-O-O {[%emt 0:00:41]} O-O-O {[%emt 0:00:05] White has an edge.} 13. Ba6 {[%emt 0:00:11] [#]} Bxa6 $146 {[%emt 0:00:04]} ({Predecessor:} 13... Rdg8 14. g3 f5 15. Ned2 Bf6 16. Rhe1 Bxa6 17. Qxa6+ Kb8 18. Nc4 b5 19. Nce5 Nb6 {0-1 (51) Savova,S (2250)-Voiska,M (2315) Sofia 1989}) 14. Qxa6+ {[%emt 0:00:02]} Qb7 {[%emt 0:00:01]} 15. Qe2 {[%emt 0:00:14]} Rhg8 {[%emt 0:00:30]} 16. g3 {[%emt 0:00:04]} f5 {[%emt 0:01:08]} 17. Ned2 {[%emt 0:00:03]} Bd6 {[%emt 0:01:56]} 18. Kb1 {[%emt 0:00:11]} Kb8 {[%emt 0:00:06]} 19. Nc4 {[%emt 0:00:01]} Bc7 {[%emt 0:00:01]} 20. Nce5 {[%emt 0:00:03]} Bxe5 {[%emt 0:00:16]} 21. Nxe5 {[%emt 0:00:02]} Nf6 {[%emt 0:00:37] [#]} (21... Nxe5 $11 {keeps the balance.} 22. dxe5 Qe7) 22. f3 {[%emt 0:00:03] White is more active.} (22. Nxc6+ $1 $16 {[%mdl 512]} Qxc6 23. Qe5+ Ka8 24. Qxf6) 22... Nd5 {[%emt 0:00:33]} 23. Rd2 {[%emt 0:00:51]} (23. c4 $5 {[%cal Rc4d5]} Nb4 24. Rhe1 $14) 23... Qc7 {[%emt 0:00:35]} 24. Rhd1 {[%emt 0:00:16]} Kb7 {[%emt 0:00:04]} (24... f6 $14 {might be stronger.}) 25. Nd3 {[%emt 0:00:13]} (25. c4 $16 Nf6 26. g4) 25... h5 {[%emt 0:00:11]} (25... f4 $11) 26. c4 $14 {[%emt 0:00:07]} Nf6 {[%emt 0:00:07]} 27. Nf4 {[%emt 0:00:06]} (27. Ne5 $14) 27... h4 $11 {[%emt 0:00:12]} 28. Qf2 {[%emt 0:01:30]} hxg3 {[%emt 0:00:12]} 29. hxg3 {[%emt 0:00:01]} Rh8 {[%emt 0:00:11]} 30. Qe3 {[%emt 0:01:43]} Nh5 {[%emt 0:00:33]} 31. Nxh5 {[%emt 0:00:07]} Rxh5 {[%emt 0:00:01]} 32. g4 {[%emt 0:00:03]} fxg4 {[%emt 0:00:33]} 33. fxg4 {[%emt 0:00:00]} Rh2 {[%emt 0:00:24]} 34. Rxh2 {[%emt 0:00:04]} Qxh2 {[%emt 0:00:01][%mdl 4096] Endgame KQR-KQR} 35. Qf3 {[%emt 0:00:01]} Qh7+ {[%emt 0:00:27]} 36. Ka1 {[%emt 0:00:18]} Qg6 {[%emt 0:00:45]} 37. a3 {[%emt 0:00:11]} Rg8 {[%emt 0:00:07]} 38. d5 {[%emt 0:00:05]} exd5 {[%emt 0:00:49]} (38... cxd5 $1 $11 39. cxd5 e5) 39. cxd5 $16 {[%emt 0:00:02]} Rc8 {[%emt 0:01:11] [#]} 40. dxc6+ {[%emt 0:00:06]} (40. Rc1 $1 $16 {And now dxc6+ would win.} cxd5 41. Qxd5+ Kb8 42. Qe5+ Kb7 43. Qe7+ Kb8 44. Rxc8+ Kxc8 45. Qxa7) 40... Qxc6 {[%emt 0:00:01]} (40... Rxc6 $14 41. Re1 (41. Rd7+ Kc8 $11) 41... Qf6) 41. Qxf7+ Rc7 42. Qd5 {[%emt 0:00:05]} (42. Qf5 $16) 42... Qxd5 $14 {[%emt 0:00:23]} 43. Rxd5 {[%emt 0:00:00]} Rc1+ {[%emt 0:00:01]} 44. Ka2 Rg1 45. Rg5 {[%emt 0:00:16]} Rg3 {[%emt 0:00:07] Weighted Error Value: White=0.15 (very precise) /Black=0.22 (precise)} 1/2-1/2

[Event "Portuguese Rapid-ch 2022"]
[Site "Viseu"]
[Date "2022.06.11"]
[Round "7.8"]
[White "Ferreira, Vitor Hugo Vieira"]
[Black "De Carvalho, Vitor Augusto Poncia"]
[Result "1-0"]
[ECO "A48"]
[WhiteElo "2128"]
[BlackElo "1904"]
[Annotator "TA"]
[PlyCount "67"]
[EventDate "2022.06.09"]
[EventType "rapid"]
[EventCountry "POR"]
[SourceTitle "playchess.com"]
[Source "ChessBase"]
[SourceQuality "1"]
[TimeControl "600+5"]

{[%evp 9,67,13,12,25,29,23,22,19,26,14,14,14,18,24,20,15,10,0,32,24,35,18,35,20,35,35,55,0,0,0,38,35,29,36,62,37,124,117,328,313,411,416,487,420,453,366,366,341,350,344,332,342,541,541,549,523,733,727,669,629]} 1. d4 {[%emt 0:00:01]} Nf6 {[%emt 0:00:01]} 2. Nf3 {[%emt 0:00:01]} g6 {[%emt 0:00:02]} 3. Bg5 {[%emt 0:00:01]} Ne4 {[%emt 0:00:14]} 4. Bh4 {[%emt 0:00:02]} Bg7 {[%emt 0:00:13]} 5. c3 {[%emt 0:00:01]} O-O {[%emt 0:00:16]} 6. Nbd2 {[%emt 0:00:02] A48: 1 d4 Nf6 2 Nf3 g6: Torre, London and Colle Systems.} Nxd2 {[%emt 0:00:16]} 7. Qxd2 {[%emt 0:00:02]} d5 {[%emt 0:00:05]} 8. e3 {[%emt 0:00:01] The position is equal.} Bf5 {[%emt 0:00:45]} 9. Bd3 {[%emt 0:00:11]} Bxd3 {[%emt 0:00:06]} 10. Qxd3 {[%emt 0:00:01]} Nd7 {[%emt 0:00:30]} 11. O-O {[%emt 0:00:06]} c6 {[%emt 0:00:09]} 12. e4 {[%emt 0:00:06]} dxe4 {[%emt 0:00:06]} 13. Qxe4 {[%emt 0:00:02]} Nf6 {[%emt 0:00:05]} 14. Qe2 {[%emt 0:00:02] [#]} e6 $146 {[%emt 0:00:14]} ({Predecessor:} 14... Re8 15. Ne5 Qd5 16. Rfe1 Rac8 17. Rad1 Nd7 18. Nxd7 Qxd7 19. Qc4 e6 20. Qa4 a6 {½-½ (36) Berg,D (1969)-Brueggestrass,V (2021) Germany 2018}) 15. Ne5 {[%emt 0:00:17]} Qc7 {[%emt 0:00:10]} 16. Rad1 {[%emt 0:00:15]} a5 {[%emt 0:00:22]} 17. a4 {[%emt 0:00:08]} Rfe8 {[%emt 0:00:39]} 18. Bg3 {[%emt 0:00:34][%cal Oe5g6] [#] aiming for Nxg6!} (18. Qf3 {feels hotter.} Nd5 19. c4 Nb6 20. b3) 18... Nh5 {[%emt 0:00:38]} 19. Bh4 {[%emt 0:00:29]} Nf6 {[%emt 0:01:10]} 20. Rd3 {[%emt 0:00:25] Rf3 is the strong threat.} Nd7 {[%emt 0:01:40]} 21. Nc4 {[%emt 0:00:29]} e5 {[%emt 0:01:03]} 22. dxe5 {[%emt 0:00:18] White is more active.} Nxe5 {[%emt 0:00:05]} (22... Bxe5 $14 23. Nxe5 Qxe5) 23. Re3 $16 {[%emt 0:00:03]} Re6 $2 {[%emt 0:01:03] Black cannot hold the game after this.} (23... b5 $16 {was necessary.}) 24. Bg3 $18 {[%emt 0:00:01]} f6 {[%emt 0:00:13]} 25. f4 {[%emt 0:00:09]} b5 {[%emt 0:00:44]} 26. Na3 {[%emt 0:01:55]} ({Not} 26. Nxe5 fxe5 27. axb5 (27. fxe5 bxa4 28. Ref3 Qd7 $14) 27... cxb5 $16) 26... Qb6 {[%emt 0:00:07][%cal Oe5g4] [#] And now ...Ng4! would win.} 27. fxe5 {[%emt 0:00:02]} Bh6 {[%emt 0:00:02]} 28. Bf4 {[%emt 0:00:02]} Bxf4 {[%emt 0:00:15]} 29. Rxf4 {[%emt 0:00:01]} Rxe5 {[%emt 0:00:02]} 30. Rd4 {[%emt 0:00:01]} c5 {[%emt 0:00:12]} (30... Qc5 {was worth a try.} 31. axb5 cxb5) 31. Rxe5 {[%emt 0:00:02][%cal Be3e5,Be5b5,Bb5b6,Bb6e6][%mdl 32] White is clearly winning.} cxd4 {[%emt 0:00:06]} 32. Rxb5 {[%emt 0:00:10]} d3+ {[%emt 0:00:15]} 33. Rxb6 {[%emt 0:00:02] Intending Qe6+ and mate.} dxe2 {[%emt 0:00:01]} 34. Re6 {[%emt 0:00:02] Weighted Error Value: White=0.13 (very precise) /Black=0.33} 1-0